[Event "Late-Titled-Tuesday-Blitz-February-06-2024"]
[Site "Chess.com"]
[Date "2024.02.06"]
[Round "4"]
[White "ACollins05"]
[Black "aghasiyevkamal"]
[Result "1-0"]
[WhiteElo "2429"]
[BlackElo "2608"]
[TimeControl "180+1"]
[EndTime "14:35:27 PST"]
[Termination "ACollins05 won by resignation"]

1. d4 {[%clk 0:02:59]} 1... d5 {[%clk 0:02:54.3]} 2. c4 {[%clk 0:02:59.1]} 2...
e6 {[%clk 0:02:53.8]} 3. Nf3 {[%clk 0:02:59]} 3... Nf6 {[%clk 0:02:54.3]} 4. g3
{[%clk 0:02:59.2]} 4... dxc4 {[%clk 0:02:53.2]} 5. Bg2 {[%clk 0:02:58.7]} 5...
c5 {[%clk 0:02:53.4]} 6. O-O {[%clk 0:02:56.9]} 6... Nc6 {[%clk 0:02:52.8]} 7.
dxc5 {[%clk 0:02:56.4]} 7... Qxd1 {[%clk 0:02:52]} 8. Rxd1 {[%clk 0:02:57.3]}
8... Bxc5 {[%clk 0:02:52.2]} 9. Nbd2 {[%clk 0:02:57.7]} 9... c3 {[%clk
0:02:47.6]} 10. bxc3 {[%clk 0:02:58.6]} 10... Bd7 {[%clk 0:02:39]} 11. Nb3
{[%clk 0:02:58.1]} 11... Bb6 {[%clk 0:02:35.2]} 12. Nfd4 {[%clk 0:02:58.1]}
12... Nxd4 {[%clk 0:02:33.9]} 13. cxd4 {[%clk 0:02:59]} 13... Bc6 {[%clk
0:02:30.6]} 14. Bxc6+ {[%clk 0:02:54.6]} 14... bxc6 {[%clk 0:02:30.9]} 15. Ba3
{[%clk 0:02:55.1]} 15... O-O-O {[%clk 0:02:24.7]} 16. Rac1 {[%clk 0:02:53.3]}
16... Kb7 {[%clk 0:02:24.6]} 17. e3 {[%clk 0:02:52.2]} 17... h5 {[%clk
0:02:21.2]} 18. Be7 {[%clk 0:02:51]} 18... Rd5 {[%clk 0:02:20.2]} 19. Bxf6
{[%clk 0:02:50.7]} 19... gxf6 {[%clk 0:02:20.6]} 20. h4 {[%clk 0:02:51]} 20...
Rhd8 {[%clk 0:02:18.4]} 21. Re1 {[%clk 0:02:34.7]} 21... a5 {[%clk 0:02:12.5]}
22. Rb1 {[%clk 0:02:28.1]} 22... Rb5 {[%clk 0:02:11.9]} 23. a4 {[%clk
0:02:07.4]} 23... Rb4 {[%clk 0:02:06.1]} 24. Nxa5+ {[%clk 0:02:00.4]} 24... Bxa5
{[%clk 0:02:06.1]} 25. Rxb4+ {[%clk 0:02:00.5]} 25... Bxb4 {[%clk 0:02:06.2]}
26. Rb1 {[%clk 0:02:01.1]} 26... Ra8 {[%clk 0:02:05.9]} 27. Rxb4+ {[%clk
0:02:00]} 27... Kc7 {[%clk 0:02:06.2]} 28. Kf1 {[%clk 0:02:00]} 28... Ra5 {[%clk
0:02:06.2]} 29. Ke2 {[%clk 0:02:00.1]} 29... c5 {[%clk 0:02:00.4]} 30. Rc4
{[%clk 0:02:00.3]} 30... Kd6 {[%clk 0:01:59.4]} 31. dxc5+ {[%clk 0:02:00.2]}
31... Kd5 {[%clk 0:01:58.1]} 32. Kd3 {[%clk 0:02:00]} 32... f5 {[%clk
0:01:56.9]} 33. c6 {[%clk 0:01:58.6]} 33... Ra8 {[%clk 0:01:57.1]} 34. c7 {[%clk
0:01:58.7]} 34... Rc8 {[%clk 0:01:57.3]} 35. a5 {[%clk 0:01:57.3]} 35... e5
{[%clk 0:01:57.6]} 36. a6 {[%clk 0:01:56.2]} 1-0

[Event "Late-Titled-Tuesday-Blitz-February-06-2024"]
[Site "Chess.com"]
[Date "2024.02.06"]
[Round "4"]
[White "masterofpuppets2"]
[Black "GothamChess"]
[Result "0-1"]
[WhiteElo "2513"]
[BlackElo "2696"]
[TimeControl "180+1"]
[EndTime "14:35:41 PST"]
[Termination "GothamChess won by resignation"]

1. e4 {[%clk 0:03:00.9]} 1... e6 {[%clk 0:01:53.3]} 2. d3 {[%clk 0:02:57.5]}
2... d5 {[%clk 0:01:53.3]} 3. Qe2 {[%clk 0:02:56.7]} 3... Nc6 {[%clk 0:01:51.3]}
4. Nf3 {[%clk 0:02:54.3]} 4... e5 {[%clk 0:01:50.9]} 5. c3 {[%clk 0:02:50]} 5...
f6 {[%clk 0:01:48.4]} 6. g3 {[%clk 0:02:46.5]} 6... Be6 {[%clk 0:01:47.7]} 7.
Bg2 {[%clk 0:02:46.8]} 7... Qd7 {[%clk 0:01:48.1]} 8. O-O {[%clk 0:02:45.9]}
8... O-O-O {[%clk 0:01:45]} 9. a4 {[%clk 0:02:46]} 9... g5 {[%clk 0:01:41.6]}
10. b4 {[%clk 0:02:33.9]} 10... dxe4 {[%clk 0:01:41.6]} 11. dxe4 {[%clk
0:02:32.3]} 11... Qd3 {[%clk 0:01:38.5]} 12. Qxd3 {[%clk 0:02:20.6]} 12... Rxd3
{[%clk 0:01:39.4]} 13. Re1 {[%clk 0:02:12.3]} 13... h5 {[%clk 0:01:37.6]} 14.
Bf1 {[%clk 0:02:01.2]} 14... Rxf3 {[%clk 0:01:36.4]} 15. Nd2 {[%clk 0:01:54.1]}
15... Rxc3 {[%clk 0:01:35.6]} 16. Bb2 {[%clk 0:01:26.8]} 16... Rc2 {[%clk
0:01:34.3]} 0-1

[Event "Late-Titled-Tuesday-Blitz-February-06-2024"]
[Site "Chess.com"]
[Date "2024.02.06"]
[Round "4"]
[White "CarrotsandPizza"]
[Black "delqate"]
[Result "1-0"]
[WhiteElo "2525"]
[BlackElo "2358"]
[TimeControl "180+1"]
[EndTime "14:35:50 PST"]
[Termination "CarrotsandPizza won by resignation"]

1. e4 {[%clk 0:02:53.5]} 1... d5 {[%clk 0:02:59.6]} 2. exd5 {[%clk 0:02:50.4]}
2... Qxd5 {[%clk 0:03:00.5]} 3. c4 {[%clk 0:02:49.7]} 3... Qd8 {[%clk
0:02:58.2]} 4. d4 {[%clk 0:02:49.6]} 4... g6 {[%clk 0:02:50.8]} 5. Nf3 {[%clk
0:02:49.2]} 5... Bg7 {[%clk 0:02:51]} 6. Nc3 {[%clk 0:02:49.6]} 6... Bg4 {[%clk
0:02:51.1]} 7. Be2 {[%clk 0:02:46.4]} 7... Nc6 {[%clk 0:02:49.5]} 8. d5 {[%clk
0:02:45.3]} 8... Bxf3 {[%clk 0:02:48.2]} 9. Bxf3 {[%clk 0:02:45.5]} 9... Nd4
{[%clk 0:02:46.8]} 10. Qa4+ {[%clk 0:02:42.1]} 10... Qd7 {[%clk 0:02:43]} 11.
Qxd7+ {[%clk 0:02:40.4]} 11... Kxd7 {[%clk 0:02:43.9]} 12. Bd1 {[%clk
0:02:39.8]} 12... c5 {[%clk 0:02:30.4]} 13. O-O {[%clk 0:02:30.9]} 13... Bh6
{[%clk 0:02:17.2]} 14. Be3 {[%clk 0:02:28]} 14... Bg7 {[%clk 0:02:04.6]} 15. Ne2
{[%clk 0:02:16.5]} 15... e5 {[%clk 0:01:54.7]} 16. dxe6+ {[%clk 0:02:14.8]}
16... Nxe6 {[%clk 0:01:53.8]} 17. Nc3 {[%clk 0:02:11.8]} 17... Bxc3 {[%clk
0:01:46.9]} 18. bxc3 {[%clk 0:02:02.1]} 18... Ne7 {[%clk 0:01:46.9]} 19. Bf3
{[%clk 0:01:54.4]} 19... Kc7 {[%clk 0:01:43.5]} 20. Rab1 {[%clk 0:01:48.2]}
20... Rab8 {[%clk 0:01:43.3]} 21. Bd5 {[%clk 0:01:47.4]} 21... b6 {[%clk
0:01:43.1]} 22. Bxe6 {[%clk 0:01:46.6]} 22... fxe6 {[%clk 0:01:44]} 23. Bf4+
{[%clk 0:01:46.4]} 23... Kc6 {[%clk 0:01:35.1]} 24. Bxb8 {[%clk 0:01:45.5]}
24... Rxb8 {[%clk 0:01:35.5]} 25. Rfe1 {[%clk 0:01:44.2]} 25... Rd8 {[%clk
0:01:29.5]} 26. Rxe6+ {[%clk 0:01:35.5]} 1-0

[Event "Late-Titled-Tuesday-Blitz-February-06-2024"]
[Site "Chess.com"]
[Date "2024.02.06"]
[Round "4"]
[White "expii"]
[Black "bitter-cikolata"]
[Result "0-1"]
[WhiteElo "2211"]
[BlackElo "2483"]
[TimeControl "180+1"]
[EndTime "14:36:09 PST"]
[Termination "bitter-cikolata won by resignation"]

1. e4 {[%clk 0:03:00.9]} 1... e5 {[%clk 0:02:50.6]} 2. Nf3 {[%clk 0:03:00.3]}
2... Nc6 {[%clk 0:02:50]} 3. Bb5 {[%clk 0:02:59.7]} 3... a6 {[%clk 0:02:50.1]}
4. Ba4 {[%clk 0:02:56.4]} 4... Nf6 {[%clk 0:02:50.4]} 5. d4 {[%clk 0:02:55.1]}
5... exd4 {[%clk 0:02:46.6]} 6. e5 {[%clk 0:02:54.2]} 6... Nd5 {[%clk 0:02:43]}
7. Nxd4 {[%clk 0:02:48.3]} 7... Be7 {[%clk 0:02:43]} 8. O-O {[%clk 0:02:45.2]}
8... O-O {[%clk 0:02:43.1]} 9. Nxc6 {[%clk 0:02:32.4]} 9... dxc6 {[%clk
0:02:43.1]} 10. c4 {[%clk 0:02:28.3]} 10... Nb6 {[%clk 0:02:42.3]} 11. Bb3
{[%clk 0:02:21.4]} 11... Be6 {[%clk 0:02:39.9]} 12. Qe2 {[%clk 0:02:12.5]} 12...
Qd4 {[%clk 0:02:33.5]} 13. Rd1 {[%clk 0:02:07.1]} 13... Bxc4 {[%clk 0:02:26.5]}
14. Rxd4 {[%clk 0:02:00.6]} 14... Bxe2 {[%clk 0:02:26.5]} 15. Bf4 {[%clk
0:01:56.4]} 15... Rad8 {[%clk 0:02:25.4]} 16. Rxd8 {[%clk 0:01:50]} 16... Rxd8
{[%clk 0:02:26.3]} 17. Nc3 {[%clk 0:01:49]} 17... Nd5 {[%clk 0:02:18.6]} 18.
Nxd5 {[%clk 0:01:34.8]} 18... cxd5 {[%clk 0:02:19.5]} 19. Rc1 {[%clk 0:01:31.1]}
19... c5 {[%clk 0:02:17.7]} 20. Be3 {[%clk 0:01:26.2]} 20... d4 {[%clk
0:02:17.2]} 21. Bd2 {[%clk 0:01:23.5]} 21... b5 {[%clk 0:02:16.3]} 22. Re1
{[%clk 0:01:14.1]} 22... Bc4 {[%clk 0:02:11.4]} 23. Bxc4 {[%clk 0:01:13.3]}
23... bxc4 {[%clk 0:02:12]} 24. Rc1 {[%clk 0:01:13.5]} 24... Rb8 {[%clk
0:02:10.7]} 25. Bf4 {[%clk 0:01:01]} 25... Rxb2 {[%clk 0:02:08.5]} 26. Rxc4
{[%clk 0:00:58.1]} 26... g5 {[%clk 0:02:02]} 27. Bc1 {[%clk 0:00:56.7]} 27...
Rxa2 {[%clk 0:02:02.3]} 28. f4 {[%clk 0:00:55.1]} 28... d3 {[%clk 0:02:00.7]}
0-1

[Event "Late-Titled-Tuesday-Blitz-February-06-2024"]
[Site "Chess.com"]
[Date "2024.02.06"]
[Round "4"]
[White "Pachonpower"]
[Black "martinmena"]
[Result "1/2-1/2"]
[WhiteElo "2295"]
[BlackElo "2159"]
[TimeControl "180+1"]
[EndTime "14:36:09 PST"]
[Termination "Game drawn by agreement"]

1. e4 {[%clk 0:02:49.8]} 1... c6 {[%clk 0:02:59.5]} 2. c4 {[%clk 0:02:48.7]}
2... d5 {[%clk 0:03:00.4]} 3. cxd5 {[%clk 0:02:49.6]} 3... cxd5 {[%clk
0:03:00.5]} 4. exd5 {[%clk 0:02:50.5]} 4... Nf6 {[%clk 0:02:59.9]} 5. Nc3 {[%clk
0:02:51.4]} 5... g6 {[%clk 0:03:00.3]} 6. g3 {[%clk 0:02:52]} 6... Bg7 {[%clk
0:03:00.8]} 7. Bg2 {[%clk 0:02:52.6]} 7... O-O {[%clk 0:03:01.2]} 8. Nge2 {[%clk
0:02:53.3]} 8... Na6 {[%clk 0:02:51.2]} 9. O-O {[%clk 0:02:53.2]} 9... Nc7
{[%clk 0:02:50.2]} 10. Nf4 {[%clk 0:02:46.8]} 10... Rb8 {[%clk 0:02:44.7]} 11.
d3 {[%clk 0:02:45.7]} 11... b6 {[%clk 0:02:44.2]} 12. Re1 {[%clk 0:02:44]} 12...
Bb7 {[%clk 0:02:43.2]} 13. a4 {[%clk 0:02:37.6]} 13... Ncxd5 {[%clk 0:02:27.8]}
14. Nfxd5 {[%clk 0:02:34.5]} 14... Nxd5 {[%clk 0:02:28.3]} 15. Nxd5 {[%clk
0:02:34.3]} 15... Bxd5 {[%clk 0:02:27.8]} 16. Bxd5 {[%clk 0:02:32.5]} 16... Qxd5
{[%clk 0:02:28.3]} 17. Rxe7 {[%clk 0:02:32]} 17... Rfd8 {[%clk 0:02:22.3]} 18.
Bf4 {[%clk 0:02:31]} 18... Ra8 {[%clk 0:02:13.5]} 19. a5 {[%clk 0:02:30.7]}
19... bxa5 {[%clk 0:02:09.9]} 20. Qe1 {[%clk 0:02:22.8]} 20... Qxd3 {[%clk
0:02:03.6]} 21. Rxa5 {[%clk 0:02:19.4]} 21... a6 {[%clk 0:01:51]} 22. Be5 {[%clk
0:02:13]} 22... Qd1 {[%clk 0:01:33.6]} 23. Bxg7 {[%clk 0:02:11.7]} 23... Kxg7
{[%clk 0:01:29.3]} 24. Kg2 {[%clk 0:02:02.9]} 24... Qxe1 {[%clk 0:01:28.4]} 25.
Rxe1 {[%clk 0:02:03.8]} 25... Rdb8 {[%clk 0:01:21.2]} 26. Rea1 {[%clk 0:02:01]}
26... Rxb2 {[%clk 0:01:21.2]} 27. Rxa6 {[%clk 0:01:59.8]} 27... Rd8 {[%clk
0:01:20.7]} 28. R6a2 {[%clk 0:01:58.9]} 28... Rdd2 {[%clk 0:01:16.4]} 29. Rxb2
{[%clk 0:01:57.1]} 29... Rxb2 {[%clk 0:01:17.3]} 30. h4 {[%clk 0:01:57.4]} 30...
h5 {[%clk 0:01:16.7]} 31. Ra5 {[%clk 0:01:56.6]} 31... Rc2 {[%clk 0:01:16.5]}
32. Ra6 {[%clk 0:01:55.3]} 32... Rc3 {[%clk 0:01:15.3]} 33. f4 {[%clk
0:01:52.8]} 1/2-1/2

[Event "Late-Titled-Tuesday-Blitz-February-06-2024"]
[Site "Chess.com"]
[Date "2024.02.06"]
[Round "4"]
[White "fks_stal_mielec"]
[Black "JaackCamel"]
[Result "0-1"]
[WhiteElo "2325"]
[BlackElo "2196"]
[TimeControl "180+1"]
[EndTime "14:36:13 PST"]
[Termination "JaackCamel won by resignation"]

1. e4 {[%clk 0:03:00.9]} 1... e6 {[%clk 0:02:50.4]} 2. d4 {[%clk 0:02:57.4]}
2... d5 {[%clk 0:02:50.2]} 3. Nd2 {[%clk 0:02:56.4]} 3... c5 {[%clk 0:02:49.9]}
4. Ngf3 {[%clk 0:02:53.4]} 4... cxd4 {[%clk 0:02:49.4]} 5. Nxd4 {[%clk
0:02:52.8]} 5... Nc6 {[%clk 0:02:48.8]} 6. Bb5 {[%clk 0:02:52.1]} 6... Bd7
{[%clk 0:02:48.6]} 7. Bxc6 {[%clk 0:02:40.2]} 7... bxc6 {[%clk 0:02:48]} 8. exd5
{[%clk 0:02:40.6]} 8... cxd5 {[%clk 0:02:47.8]} 9. O-O {[%clk 0:02:39.9]} 9...
Nf6 {[%clk 0:02:46.9]} 10. N2f3 {[%clk 0:02:39.8]} 10... Be7 {[%clk 0:02:41.2]}
11. Bf4 {[%clk 0:02:39]} 11... O-O {[%clk 0:02:39]} 12. c3 {[%clk 0:02:38.8]}
12... h6 {[%clk 0:02:38.7]} 13. h3 {[%clk 0:02:37.3]} 13... a5 {[%clk
0:02:38.2]} 14. Bh2 {[%clk 0:02:35.7]} 14... a4 {[%clk 0:02:35.7]} 15. Qc2
{[%clk 0:02:27.8]} 15... Ne4 {[%clk 0:02:34.4]} 16. Rac1 {[%clk 0:02:19.9]}
16... Qb6 {[%clk 0:02:16.6]} 17. Ne5 {[%clk 0:02:11.6]} 17... Bb5 {[%clk
0:02:09]} 18. Rfe1 {[%clk 0:02:03.5]} 18... Rfc8 {[%clk 0:02:05]} 19. Qd1 {[%clk
0:01:58.3]} 19... Bf6 {[%clk 0:01:57.9]} 20. Nxb5 {[%clk 0:01:53.7]} 20... Qxb5
{[%clk 0:01:57.7]} 21. Qe2 {[%clk 0:01:46.5]} 21... Qxe2 {[%clk 0:01:54]} 22.
Rxe2 {[%clk 0:01:47.4]} 22... a3 {[%clk 0:01:54]} 23. b3 {[%clk 0:01:35.3]}
23... Rxc3 {[%clk 0:01:50.7]} 24. Rec2 {[%clk 0:01:29]} 24... Rac8 {[%clk
0:01:30.8]} 25. Rxc3 {[%clk 0:01:27.8]} 25... Rxc3 {[%clk 0:01:30.3]} 26. Rb1
{[%clk 0:01:25]} 26... Rc2 {[%clk 0:01:26.3]} 27. Nd7 {[%clk 0:01:19.8]} 0-1

[Event "Late-Titled-Tuesday-Blitz-February-06-2024"]
[Site "Chess.com"]
[Date "2024.02.06"]
[Round "4"]
[White "shirovin"]
[Black "Iuckyducky"]
[Result "1-0"]
[WhiteElo "2087"]
[BlackElo "2256"]
[TimeControl "180+1"]
[EndTime "14:36:16 PST"]
[Termination "shirovin won by checkmate"]

1. e4 {[%clk 0:03:00.9]} 1... c5 {[%clk 0:02:53.3]} 2. Nf3 {[%clk 0:03:01.2]}
2... Nc6 {[%clk 0:02:50.8]} 3. b4 {[%clk 0:03:00.7]} 3... Nxb4 {[%clk
0:02:49.7]} 4. c3 {[%clk 0:03:00.2]} 4... Nc6 {[%clk 0:02:49.1]} 5. d4 {[%clk
0:03:00.9]} 5... cxd4 {[%clk 0:02:49.7]} 6. cxd4 {[%clk 0:03:00.4]} 6... d5
{[%clk 0:02:48.9]} 7. exd5 {[%clk 0:03:00.9]} 7... Qxd5 {[%clk 0:02:49.5]} 8.
Nc3 {[%clk 0:03:01.1]} 8... Qa5 {[%clk 0:02:49.3]} 9. d5 {[%clk 0:02:40]} 9...
Qxc3+ {[%clk 0:02:38.9]} 10. Bd2 {[%clk 0:02:39.4]} 10... Qc5 {[%clk 0:02:25.7]}
11. dxc6 {[%clk 0:02:24.5]} 11... Nf6 {[%clk 0:02:23.3]} 12. Rc1 {[%clk
0:02:18.3]} 12... Qd6 {[%clk 0:02:05.6]} 13. cxb7 {[%clk 0:02:06.1]} 13... Bxb7
{[%clk 0:02:06.5]} 14. Bb5+ {[%clk 0:02:05.5]} 14... Nd7 {[%clk 0:02:06.2]} 15.
Bxd7+ {[%clk 0:01:45.5]} 15... Qxd7 {[%clk 0:02:05.9]} 16. Ne5 {[%clk
0:01:44.9]} 16... Qb5 {[%clk 0:01:57.2]} 17. Bc3 {[%clk 0:01:07.4]} 17... Rc8
{[%clk 0:01:37.5]} 18. a4 {[%clk 0:00:51.8]} 18... Qa6 {[%clk 0:01:28.6]} 19.
Qd7# {[%clk 0:00:49.8]} 1-0

[Event "Late-Titled-Tuesday-Blitz-February-06-2024"]
[Site "Chess.com"]
[Date "2024.02.06"]
[Round "4"]
[White "BeardedNM"]
[Black "Arman_Hakemi"]
[Result "0-1"]
[WhiteElo "2257"]
[BlackElo "2667"]
[TimeControl "180+1"]
[EndTime "14:36:34 PST"]
[Termination "Arman_Hakemi won on time"]

1. e4 {[%clk 0:03:00.9]} 1... c5 {[%clk 0:03:00.2]} 2. Nf3 {[%clk 0:03:01]} 2...
Nc6 {[%clk 0:03:00.7]} 3. d4 {[%clk 0:03:01.6]} 3... cxd4 {[%clk 0:03:01.6]} 4.
Nxd4 {[%clk 0:03:02.3]} 4... e5 {[%clk 0:03:02.1]} 5. Nb5 {[%clk 0:03:01.8]}
5... a6 {[%clk 0:03:00.8]} 6. Nd6+ {[%clk 0:03:01]} 6... Bxd6 {[%clk 0:03:01.5]}
7. Qxd6 {[%clk 0:03:01.7]} 7... Qf6 {[%clk 0:03:01.9]} 8. Qd1 {[%clk 0:03:02.3]}
8... Qg6 {[%clk 0:03:01.3]} 9. Nc3 {[%clk 0:03:02.6]} 9... Nf6 {[%clk
0:03:01.9]} 10. f3 {[%clk 0:02:56.9]} 10... O-O {[%clk 0:03:02.1]} 11. Be3
{[%clk 0:02:54.2]} 11... d5 {[%clk 0:02:59.9]} 12. Nxd5 {[%clk 0:02:53.6]} 12...
Nxd5 {[%clk 0:02:59.8]} 13. exd5 {[%clk 0:02:32.5]} 13... Nb4 {[%clk 0:02:57.4]}
14. Bc5 {[%clk 0:01:53.4]} 14... Nxc2+ {[%clk 0:02:56.1]} 15. Kf2 {[%clk
0:01:53.5]} 15... Nxa1 {[%clk 0:02:51.7]} 16. Bxf8 {[%clk 0:01:44.2]} 16... Qb6+
{[%clk 0:02:47]} 17. Kg3 {[%clk 0:01:30]} 17... Kxf8 {[%clk 0:02:46.6]} 18. Qxa1
{[%clk 0:01:27.4]} 18... f5 {[%clk 0:02:46.1]} 19. h3 {[%clk 0:01:01.9]} 19...
Qd6 {[%clk 0:02:37]} 20. Bc4 {[%clk 0:00:45.9]} 20... e4+ {[%clk 0:02:32.7]} 21.
f4 {[%clk 0:00:46.3]} 21... Bd7 {[%clk 0:02:27.6]} 22. a4 {[%clk 0:00:30.6]}
22... Rc8 {[%clk 0:02:26.7]} 23. b3 {[%clk 0:00:30.6]} 23... b5 {[%clk
0:02:26.9]} 24. axb5 {[%clk 0:00:22.2]} 24... axb5 {[%clk 0:02:27.8]} 25. Be2
{[%clk 0:00:14.6]} 25... Rc2 {[%clk 0:02:27.8]} 26. Qa8+ {[%clk 0:00:07.7]}
26... Kf7 {[%clk 0:02:26.9]} 27. Bh5+ {[%clk 0:00:04.3]} 27... g6 {[%clk
0:02:26.7]} 28. Bd1 {[%clk 0:00:03.9]} 28... Rc3+ {[%clk 0:02:25.9]} 0-1

[Event "Late-Titled-Tuesday-Blitz-February-06-2024"]
[Site "Chess.com"]
[Date "2024.02.06"]
[Round "4"]
[White "igorknyazev"]
[Black "Charodej1"]
[Result "1-0"]
[WhiteElo "2153"]
[BlackElo "2271"]
[TimeControl "180+1"]
[EndTime "14:36:37 PST"]
[Termination "igorknyazev won by resignation"]

1. e4 {[%clk 0:03:00.9]} 1... c6 {[%clk 0:02:57.8]} 2. d4 {[%clk 0:03:00.4]}
2... d5 {[%clk 0:02:55.7]} 3. Nc3 {[%clk 0:03:01.1]} 3... dxe4 {[%clk
0:02:55.7]} 4. Nxe4 {[%clk 0:03:01.2]} 4... Nd7 {[%clk 0:02:56.4]} 5. Nf3 {[%clk
0:03:00.8]} 5... Ngf6 {[%clk 0:02:55.8]} 6. Neg5 {[%clk 0:02:59.5]} 6... e6
{[%clk 0:02:41.5]} 7. Bc4 {[%clk 0:02:52.3]} 7... Bd6 {[%clk 0:02:08.5]} 8. Nxf7
{[%clk 0:02:41.6]} 8... Kxf7 {[%clk 0:02:08.5]} 9. Ng5+ {[%clk 0:02:41.9]} 9...
Ke8 {[%clk 0:01:52.2]} 10. Nxe6 {[%clk 0:02:25.4]} 10... Qe7 {[%clk 0:01:45.5]}
11. O-O {[%clk 0:02:24.7]} 11... Nb6 {[%clk 0:01:42.8]} 12. Re1 {[%clk
0:02:23.9]} 12... Nxc4 {[%clk 0:01:41.7]} 13. Nxg7+ {[%clk 0:02:23.7]} 13... Kf7
{[%clk 0:01:38.5]} 14. Rxe7+ {[%clk 0:02:23.3]} 14... Kxe7 {[%clk 0:01:39.4]}
15. Qe2+ {[%clk 0:02:18.2]} 15... Kf7 {[%clk 0:01:37.6]} 16. Qxc4+ {[%clk
0:02:15.7]} 16... Kxg7 {[%clk 0:01:37.9]} 17. Bg5 {[%clk 0:02:11.2]} 17... Re8
{[%clk 0:01:35.9]} 18. h4 {[%clk 0:02:03.4]} 18... Bf5 {[%clk 0:01:31.9]} 19.
Qb3 {[%clk 0:01:54.9]} 19... Re7 {[%clk 0:01:28.9]} 20. h5 {[%clk 0:01:47.1]}
20... h6 {[%clk 0:01:27.5]} 21. Bh4 {[%clk 0:01:35.5]} 21... Rae8 {[%clk
0:01:23.8]} 22. f3 {[%clk 0:01:32.8]} 22... Bc7 {[%clk 0:01:06.6]} 23. g4 {[%clk
0:01:27.9]} 23... Be6 {[%clk 0:01:04.6]} 24. Qd3 {[%clk 0:01:26]} 24... Bf4
{[%clk 0:00:53]} 25. Qg6+ {[%clk 0:01:23.9]} 1-0

[Event "Late-Titled-Tuesday-Blitz-February-06-2024"]
[Site "Chess.com"]
[Date "2024.02.06"]
[Round "4"]
[White "Ready4abattle"]
[Black "Philippians46"]
[Result "0-1"]
[WhiteElo "2316"]
[BlackElo "2670"]
[TimeControl "180+1"]
[EndTime "14:36:41 PST"]
[Termination "Philippians46 won by resignation"]

1. e4 {[%clk 0:03:00.9]} 1... c5 {[%clk 0:02:59.7]} 2. Nf3 {[%clk 0:03:00.9]}
2... d6 {[%clk 0:03:00.2]} 3. d4 {[%clk 0:03:00.9]} 3... cxd4 {[%clk 0:03:01.1]}
4. Nxd4 {[%clk 0:03:01.3]} 4... Nf6 {[%clk 0:03:01.9]} 5. Nc3 {[%clk 0:03:01.7]}
5... Nc6 {[%clk 0:03:02.5]} 6. Bc4 {[%clk 0:03:01.1]} 6... e6 {[%clk 0:03:01.6]}
7. Be3 {[%clk 0:03:00.6]} 7... Bd7 {[%clk 0:03:01.4]} 8. Qe2 {[%clk 0:03:00.4]}
8... Rc8 {[%clk 0:03:01.8]} 9. O-O-O {[%clk 0:02:56]} 9... Na5 {[%clk
0:03:02.1]} 10. Bd3 {[%clk 0:02:48.5]} 10... a6 {[%clk 0:02:58.3]} 11. Rhg1
{[%clk 0:02:44.1]} 11... b5 {[%clk 0:02:56.7]} 12. g4 {[%clk 0:02:18.9]} 12...
b4 {[%clk 0:02:53.3]} 13. Nb1 {[%clk 0:02:18.5]} 13... h6 {[%clk 0:02:38.9]} 14.
h4 {[%clk 0:02:10]} 14... g6 {[%clk 0:02:37.5]} 15. g5 {[%clk 0:02:06.7]} 15...
hxg5 {[%clk 0:02:38.4]} 16. hxg5 {[%clk 0:02:07.1]} 16... Nh5 {[%clk 0:02:37.5]}
17. Bxa6 {[%clk 0:02:01.7]} 17... Ra8 {[%clk 0:02:36.4]} 18. Bb5 {[%clk
0:02:01.3]} 18... Bg7 {[%clk 0:02:34.4]} 19. Nb3 {[%clk 0:01:44.6]} 19... O-O
{[%clk 0:02:33.1]} 20. Bxd7 {[%clk 0:01:38.7]} 20... Qxd7 {[%clk 0:02:32.9]} 21.
Bd4 {[%clk 0:01:36.5]} 21... Rfc8 {[%clk 0:02:32]} 22. Bxg7 {[%clk 0:01:34.3]}
22... Kxg7 {[%clk 0:02:32.9]} 23. N1d2 {[%clk 0:01:20.1]} 23... Nxb3+ {[%clk
0:02:31]} 24. Nxb3 {[%clk 0:01:16.4]} 24... Rxa2 {[%clk 0:02:29.9]} 25. Rd4
{[%clk 0:00:55.6]} 25... Qa7 {[%clk 0:02:27.8]} 26. Rgd1 {[%clk 0:00:48.2]}
26... Nf4 {[%clk 0:02:23.5]} 27. Qe3 {[%clk 0:00:46.7]} 27... e5 {[%clk
0:02:18.7]} 28. Rxb4 {[%clk 0:00:43.7]} 28... Qa6 {[%clk 0:02:13.5]} 29. Kd2
{[%clk 0:00:19.4]} 29... Rxb2 {[%clk 0:02:12.9]} 30. Nc5 {[%clk 0:00:12.1]}
30... Qa5 {[%clk 0:02:08.6]} 0-1